fUST/lending_fUST_20240430
["ID","MTS","AMOUNT","RATE_DAILY","PERIOD"]
[324923755,1714421447789,-1092.826854,0.00041868,7]
[324923756,1714421447798,-1441.242254,0.00041868,7]
[324923757,1714421447807,-1092.826854,0.00041868,7]
[324923758,1714421447817,-436.38951617,0.00041868,7]
[324923759,1714421447830,-1004.85273783,0.00041868,7]
[324923760,1714421447840,-1441.242254,0.00041868,7]
[324923761,1714421447849,-1441.242254,0.00041868,7]
[324923762,1714421447859,-151.841853,0.00041868,7]
[324923763,1714421447868,-181.449053,0.00041868,7]
[324923764,1714421447878,-454.368819,0.00041868,7]
[324923765,1714421447887,-454.368819,0.00041868,7]
[324923766,1714421447896,-151.0,0.00041868,7]
[324923767,1714421447906,-454.368819,0.00041868,7]
[324923768,1714421447915,-454.368819,0.00041868,7]
[324923769,1714421447929,-151.0,0.00041868,7]
[324923770,1714421447939,-151.0,0.00041868,7]
[324923771,1714421447947,-151.0,0.00041868,7]
[324923772,1714421447957,-891.860387,0.00041868,7]
[324923773,1714421447966,-891.860387,0.00041868,7]
[324923774,1714421447976,-891.860387,0.00041868,7]
[324923775,1714421447988,-232.21541124,0.00041868,7]
[324923776,1714421448000,-659.64497576,0.00041868,7]
[324923777,1714421448009,-151.0,0.00041868,7]
[324923778,1714421448018,-198.293356,0.00041868,7]
[324923779,1714421448028,-198.293356,0.00041868,7]
[324923780,1714421448038,-151.0,0.00041868,7]
[324923781,1714421448047,-829.690022,0.00041868,7]
[324923782,1714421448056,-829.690022,0.00041868,7]
[324923783,1714421448067,-636.106117,0.00041868,7]
[324923784,1714421448076,-636.106117,0.00041868,7]
[324923785,1714421448086,-151.0,0.00041868,7]
[324923786,1714421448095,-3217.233928,0.00041868,7]
[324923787,1714421448105,-3217.233928,0.00041868,7]
[324923788,1714421448115,-151.0,0.00041868,7]
[324923789,1714421448127,-151.0,0.00041868,7]
[324923790,1714421448137,-151.0,0.00041868,3]
[324923791,1714421448148,-4896.09833,0.00041868,7]
[324923792,1714421448158,-4896.09833,0.00041868,7]
[324923793,1714421448167,-512.439697,0.00041868,7]
[324923794,1714421448178,-279.061685,0.00041868,7]
[324923795,1714421448187,-512.439697,0.00041868,7]
[324923796,1714421448197,-662.917691,0.00041868,7]
[324923797,1714421448206,-662.917691,0.00041868,7]
[324923798,1714421448216,-151.0,0.00041868,7]
[324923799,1714421448225,-151.0,0.00041868,7]
[324923800,1714421448235,-151.0,0.00041868,7]
[324923801,1714421448244,-662.917691,0.00041868,7]
[324923802,1714421448255,-6525.90736624,0.00041868,90]
[324923803,1714421454266,257.98919445,9.999e-05,2]
[324923804,1714421454289,250.63531542,9.999e-05,2]
[324923805,1714421458489,875.28887311,9.999e-05,2]
[324923806,1714421459766,200.0,9.999e-05,2]
[324923810,1714421553367,257.98919445,9.999e-05,2]
[324923821,1714422437182,-463.83903747,0.000189,2]
[324923846,1714422632192,-1463.51827063,0.0001856,2]
[324923847,1714422632205,-484.25831573,0.0001856,2]
[324923848,1714422638216,-99.97583414,0.0001856,2]
[324923849,1714422638226,-166.666666,0.0001856,2]
[324923850,1714422638235,-734.51401987,0.000189,2]
[324923851,1714422638286,-658.45671243,0.000189,2]
[324923852,1714422638295,-300.0,0.00019247,2]
[324923853,1714422638304,-24900.0,0.00019248,2]
[324923854,1714422638313,-160.579336,0.00019544,2]
[324923855,1714422638322,-939.34960788,0.00019759,2]
[324923856,1714422638332,-5460.61782475,0.0002,2]
[324923857,1714422638341,-191.88233997,0.00020912,2]
[324923858,1714422638350,-283.38557575,0.00020912,2]
[324923859,1714422638359,-800.25498688,0.00020912,2]
[324923860,1714422638368,-193.60170872,0.00020912,2]
[324923862,1714422638377,-1490.32391025,0.00020912,2]
[324923864,1714422638386,-154.92253873,0.00020912,2]
[324923866,1714422638396,-248.01830415,0.00020912,2]
[324923868,1714422638406,-1312.11264804,0.00020912,2]
[324923870,1714422638417,-207.94518351,0.00020912,2]
[324923872,1714422638427,-599.94421529,0.00020912,2]
[324923873,1714422638436,-308.49906714,0.00020912,2]
[324923875,1714422638445,-186.9275538,0.00020913,2]
[324923877,1714422638454,-500.0,0.00020913,2]
[324923879,1714422638464,-500.0,0.00020913,2]
[324923881,1714422638473,-500.25056842,0.00020913,2]
[324923882,1714422638482,-500.0,0.00020913,2]
[324923885,1714422638492,-642.60163525,0.00020913,2]
[324923886,1714422638501,-500.0,0.00020913,2]
[324923889,1714422638511,-420.0,0.00021172,2]
[324923890,1714422638521,-10000.0,0.00021918,2]
[324923893,1714422638531,-2000.0,0.00022,2]
[324923895,1714422638540,-159.13598878,0.00022,2]
[324923897,1714422638549,-297.113052,0.00022466,2]
[324923898,1714422638559,-713.83575721,0.00023,2]
[324923900,1714422638568,-587.0,0.00023289,2]
[324923902,1714422638577,-1188.17050276,0.00023783,2]
[324923905,1714422638587,-1856.80976977,0.000239,2]
[324923906,1714422638596,-693.32219262,0.00024,2]
[324923908,1714422638607,-380.0,0.00024658,2]
[324923910,1714422638617,-648.40852514,0.00024973,2]
[324923912,1714422638626,-154.81422293,0.00025,2]
[324923914,1714422638635,-154.81422293,0.00025,2]
[324923916,1714422638645,-721.91344597,0.00025,2]
[324923918,1714422638654,-154.99041713,0.00025,2]
[324923920,1714422638664,-154.95036061,0.00025,2]
[324923922,1714422638673,-158.20865679,0.00025088,2]
[324923924,1714422638682,-153.46035338,0.00025291,2]
[324923926,1714422638691,-289.31510534,0.00025456,2]
[324923928,1714422638700,-823.0,0.00025618,2]
[324923930,1714422638710,-153.46035338,0.00025656,2]
[324923932,1714422638719,-289.31510534,0.000257,2]
[324923934,1714422638732,-156.18617837,0.00026134,2]
[324923936,1714422638742,-289.31510534,0.00026227,2]
[324923938,1714422638751,-289.31510534,0.00026664,2]
[324923940,1714422638761,-156.85301532,0.00026688,2]
[324923942,1714422638773,-166.666666,0.00027397,2]
[324923944,1714422638782,-289.31510534,0.00027531,2]
[324923946,1714422638791,-156.85301532,0.00027619,2]
[324923948,1714422638801,-289.31510534,0.0002777,2]
[324923950,1714422638813,-156.18617837,0.00027861,2]
[324923952,1714422638822,-220.92131871,0.00028,2]
[324923954,1714422638832,-166.666666,0.00028038,2]
[324923956,1714422638841,-1152.0,0.0002818,2]
[324923958,1714422638850,-289.31510534,0.00028212,2]
[324923960,1714422638859,-153.93095889,0.0002835,2]
[324923962,1714422638868,-297.113052,0.00028493,2]
[324923964,1714422638877,-153.46035338,0.00028548,2]
[324923966,1714422638888,-153.93095889,0.00028559,2]
[324923969,1714422638898,-166.666666,0.00028679,2]
[324923971,1714422638908,-156.85301532,0.00028695,2]
[324923973,1714422638919,-1856.80976977,0.000289,2]
[324923975,1714422638927,-1517.06011,0.000291,7]
[324923977,1714422638938,-166.666666,0.00029321,2]
[324923979,1714422638947,-500.0,0.00029599,2]
[324923981,1714422638956,-1000.0,0.000296,7]
[324923982,1714422638966,-153.46035338,0.00029762,2]
[324923985,1714422638975,-166.666666,0.00029962,2]
[324923987,1714422638984,-154.78330338,0.0003,4]
[324923989,1714422638994,-154.78330338,0.0003,4]
[324923991,1714422639003,-154.78330338,0.0003,4]
[324923993,1714422639013,-249.0,0.0003,2]
[324923995,1714422639022,-1000.0,0.000301,7]
[324923997,1714422639032,-289.31510534,0.00030357,7]
[324923999,1714422639041,-153.46035338,0.00030532,7]
[324924001,1714422639050,-1000.0,0.000306,7]
[324924003,1714422639059,-166.666666,0.00030603,2]
[324924004,1714422639068,-589.0,0.00030998,2]
[324924006,1714422639078,-1000.0,0.000311,7]
[324924008,1714422639087,-153.46035338,0.00031133,7]
[324924010,1714422639097,-289.31510534,0.00031371,7]
[324924012,1714422639107,-1000.0,0.000316,7]
[324924014,1714422639116,-977.55062889,0.00031624,2]
[324924016,1714422639126,-153.34957969,0.00031624,2]
[324924018,1714422639136,-153.34957969,0.00031624,2]
[324924020,1714422639146,-153.34957969,0.00031624,2]
[324924022,1714422639155,-153.34957969,0.00031624,2]
[324924024,1714422639164,-289.31510534,0.00031707,7]
[324924026,1714422639173,-153.46035338,0.0003185,7]
[324924028,1714422639183,-638.7649893,0.00032,4]
[324924030,1714422639192,-150.78889555,0.00032012,2]
[324924032,1714422639201,-250.14068304,0.00032012,2]
[324924034,1714422639212,-153.46035338,0.0003209,7]
[324924036,1714422639221,-152.77728267,0.00032114,7]
[324924051,1714422639355,-153.46035338,0.00032181,7]
[324924053,1714422639365,-156.85301532,0.00032234,7]
[324924055,1714422639375,-156.18617837,0.00032311,7]
[324924057,1714422639384,-289.31510534,0.00032515,7]
[324924059,1714422639393,-301.57779109,0.0003255,4]
[324924061,1714422639403,-153.46035338,0.00032679,7]
[324924063,1714422639413,-224.34545947,0.00032708,7]
[324924065,1714422639422,-249.0,0.00033,2]
[324924067,1714422639432,-249.0,0.00033,2]
[324924069,1714422639441,-153.93095889,0.00033082,7]
[324924071,1714422639451,-603.15558218,0.00033097,7]
[324924073,1714422639460,-152.77728267,0.00033212,7]
[324924075,1714422639469,-153.46035338,0.00033844,7]
[324924077,1714422639478,-180.74166293,0.00033876,2]
[324924079,1714422639488,-289.31510534,0.00033932,7]
[324924081,1714422639497,-1206.31116437,0.00033935,30]
[324924083,1714422639507,-30188.2,0.0003397,3]
[324924085,1714422639516,-36225.83,0.0003398,3]
[324924087,1714422639525,-43471.0,0.0003399,3]
[324924089,1714422639535,-466.35092847,0.00034,4]
[324924091,1714422639545,-16228.24523147,0.00034,60]
[324924093,1714422639554,-156.85301532,0.00034451,7]
[324924095,1714422639564,-152.77728267,0.00034486,7]
[324924097,1714422639573,-297.113052,0.00034521,2]
[324924099,1714422639582,-2000.0,0.000349,2]
[324924101,1714422639591,-153.93095889,0.00034995,7]
[324924104,1714422639608,-151.13418049,0.00034999,2]
[324924106,1714422639619,-666.0,0.00034999,120]
[324924108,1714422639628,-666.0,0.00034999,120]
[324924110,1714422639637,-666.0,0.00034999,120]
[324924112,1714422639646,-666.0,0.00034999,120]
[324924114,1714422639655,-666.0,0.00034999,120]
[324924116,1714422639666,-666.0,0.00034999,120]
[324924118,1714422639675,-666.0,0.00034999,120]
[324924120,1714422639684,-220.87568685,0.00034999,120]
[324924122,1714422639694,-500.0,0.00034999,10]
[324924124,1714422639703,-5914.65556104,0.00035,4]
[324924126,1714422639713,-1307.89147106,0.00035,7]
[324924128,1714422639727,-1329.78267311,0.00035,4]
[324924130,1714422639736,-1025.00357517,0.00035,2]
[324924132,1714422639745,-555.39795402,0.00035,10]
[324924134,1714422639755,-154.78330338,0.00035,4]
[324924136,1714422639765,-12756.78468986,0.00035,4]
[324924138,1714422639775,-791.81686347,0.00035,30]
[324924140,1714422639785,-961.68740692,0.00035,30]
[324924141,1714422639798,-289.31510534,0.00035127,7]
[324924144,1714422639808,-289.31510534,0.00035291,7]
[324924146,1714422639817,-289.31510534,0.00035344,7]
[324924147,1714422639827,-156.85301532,0.00035594,7]
[324924149,1714422639837,-3139.531024,0.00035616,120]
[324924151,1714422639847,-156.85301532,0.00035647,7]
[324924154,1714422639856,-153.46035338,0.00035775,7]
[324924155,1714422639866,-154.78330338,0.0003589,2]
[324924157,1714422639876,-150.0,0.00035999,2]
[324924160,1714422639885,-150.0,0.00035999,2]
[324924162,1714422639895,-249.0,0.00036,2]
[324924163,1714422639904,-249.0,0.00036,2]
[324924165,1714422639915,-249.0,0.00036,2]
[324924167,1714422639925,-156.85301532,0.00036121,7]
[324924169,1714422639934,-152.77728267,0.00036141,7]
[324924171,1714422639948,-153.46035338,0.00036159,7]
[324924173,1714422639958,-500.0,0.00036369,10]
[324924175,1714422639967,-289.31510534,0.00036591,7]
[324924177,1714422639977,-153.46035338,0.00036653,7]
[324924179,1714422639987,-156.85301532,0.00036677,7]
[324924181,1714422639996,-153.93095889,0.00036684,7]
[324924183,1714422640006,-156.18617837,0.00036744,7]
[324924185,1714422640016,-2101.39185127,0.00036777,2]
[324924187,1714422640025,-363.86320338,0.00036777,2]
[324924189,1714422640035,-1452.47576498,0.00036777,4]
[324924192,1714422640045,-154.78330338,0.00036777,30]
[324924193,1714422640054,-9742.08348567,0.00036777,7]
[324924195,1714422640063,-154.78330338,0.00036777,15]
[324924197,1714422640072,-5314.09456798,0.00036777,10]
[324924199,1714422640082,-153.93095889,0.00036892,7]
[324924202,1714422640092,-152.77728267,0.00036915,7]
[324924203,1714422640102,-306.0,0.00036941,2]
[324924206,1714422640111,-289.31510534,0.00036956,7]
[324924208,1714422640121,-150.0,0.00036985,2]
[324924210,1714422640130,-434.54,0.00036985,2]
[324924211,1714422640139,-3512.35610251,0.00037,2]
[324924214,1714422640149,-1000.0,0.00037,3]
[324924216,1714422640158,-406.00916,0.00037078,2]
[324924218,1714422640168,-3000.0,0.000375,32]
[324924219,1714422640178,-3000.0,0.0003751,32]
[324924221,1714422640187,-3000.0,0.0003752,32]
[324924224,1714422640197,-3000.0,0.0003753,32]
[324924226,1714422640207,-3000.0,0.0003754,32]
[324924227,1714422640216,-3000.0,0.0003755,32]
[324924229,1714422640225,-3000.0,0.0003756,32]
[324924231,1714422640235,-3000.0,0.0003757,32]
[324924233,1714422640244,-3000.0,0.0003758,32]
[324924235,1714422640253,-3000.0,0.0003759,32]
[324924237,1714422640262,-3000.0,0.000376,32]
[324924239,1714422640271,-3000.0,0.0003761,32]
[324924241,1714422640281,-156.85301532,0.00037614,7]
[324924243,1714422640290,-3000.0,0.0003762,32]
[324924244,1714422640299,-3000.0,0.0003763,32]
[324924245,1714422640308,-3000.0,0.0003764,32]
[324924246,1714422640317,-3000.0,0.0003765,32]
[324924247,1714422640326,-3000.0,0.0003766,32]
[324924248,1714422640336,-500.0,0.00037739,10]
[324924249,1714422640345,-156.85301532,0.00037771,7]
[324924250,1714422640354,-180.74166292,0.00037888,2]
[324924251,1714422640364,-153.7952465,0.000379,2]
[324924252,1714422640373,-5009.79512819,0.00038,2]
[324924253,1714422640383,-289.31510534,0.00038115,7]
[324924254,1714422640392,-156.85301532,0.00038379,7]
[324924255,1714422640401,-1000.0,0.000385,2]
[324924256,1714422640412,-150.0,0.00038599,2]
[324924257,1714422640421,-289.31510534,0.00038799,7]
[324924258,1714422640430,-289.31510534,0.00038834,7]
[324924259,1714422640440,-153.46035338,0.00038837,7]
[324924260,1714422640449,-153.46035338,0.00038923,7]
[324924261,1714422640460,-5000.0,0.00039,5]
[324924262,1714422640470,-249.0,0.00039,2]
[324924264,1714422640479,-249.0,0.00039,2]
[324924266,1714422640488,-249.0,0.00039,2]
[324924268,1714422640497,-153.46035338,0.00039056,7]
[324924270,1714422640508,-500.0,0.00039109,10]
[324924272,1714422640517,-289.31510534,0.00039217,7]
[324924274,1714422640527,-153.93095889,0.00039217,7]
[324924276,1714422640536,-156.85301532,0.00039321,7]
[324924278,1714422640545,-232.10092761,0.00039397,30]
[324924280,1714422640555,-156.85301532,0.00039413,7]
[324924282,1714422640564,-156.85301532,0.00039547,7]
[324924284,1714422640572,-339.0449282,0.000398,30]
[324924285,1714422640582,-20000.0,0.00039824,4]
[324924287,1714422640591,-1159.84144778,0.0003988,120]
[324924289,1714422640600,-289.31510534,0.00039914,7]
[324924291,1714422640609,-289.31510534,0.00039948,7]
[324924293,1714422640621,-152.77728267,0.00039959,7]
[324924295,1714422640631,-150.0,0.00039985,2]
[324924297,1714422640642,-417.0,0.00039985,2]
[324924299,1714422640651,-4253.66286157,0.0004,4]
[324924302,1714422640662,-1000.0,0.0004,2]
[324924304,1714422640671,-289.31510534,0.00040016,30]
[324924306,1714422640681,-1000.0,0.00040393,2]
[324924308,1714422640690,-153.46035354,0.00040402,30]
[324924310,1714422640699,-500.0,0.00040479,10]
[324924312,1714422640708,-289.31510534,0.00040533,30]
[324924313,1714422640717,-297.113052,0.00040548,2]
[324924315,1714422640731,-289.31510534,0.00040624,30]
[324924317,1714422640741,-156.85301532,0.00040649,30]
[324924319,1714422640749,-152.77728267,0.000407,30]
[324924321,1714422640760,-156.85301539,0.00040832,30]
[324924323,1714422640769,-156.18617837,0.00040952,30]
[324924325,1714422640778,-252.6859923,0.00041,2]
[324924327,1714422640788,-162.0,0.00041,14]
[324924330,1714422640798,-289.31510534,0.0004108,30]
[324924331,1714422640810,-402.56689138,0.00041096,30]
[324924333,1714422640820,-500.0,0.00041096,31]
[324924335,1714422640829,-500.0,0.00041096,31]
[324924337,1714422640838,-500.0,0.00041096,31]
[324924339,1714422640847,-500.0,0.00041096,31]
[324924341,1714422640856,-500.0,0.00041096,31]
[324924343,1714422640865,-500.0,0.00041096,31]
[324924345,1714422640874,-500.0,0.00041096,31]
[324924347,1714422640884,-321.24970218,0.00041096,31]
[324924349,1714422640893,-500.0,0.00041096,31]
[324924351,1714422640903,-500.0,0.00041096,31]
[324924354,1714422640912,-500.0,0.00041096,31]
[324924355,1714422640921,-500.0,0.00041096,31]
[324924358,1714422640930,-500.0,0.00041096,31]
[324924360,1714422640940,-500.0,0.00041096,31]
[324924362,1714422640949,-500.0,0.00041096,31]
[324924363,1714422640958,-500.0,0.00041096,31]
[324924366,1714422640967,-500.0,0.00041096,31]
[324924368,1714422640976,-500.0,0.00041096,31]
[324924369,1714422640985,-500.0,0.00041096,31]
[324924371,1714422640995,-500.0,0.00041096,31]
[324924373,1714422641004,-500.0,0.00041096,31]
[324924375,1714422641013,-500.0,0.00041096,31]
[324924377,1714422641022,-500.0,0.00041096,31]
[324924379,1714422641031,-500.0,0.00041096,31]
[324924381,1714422641041,-500.0,0.00041096,31]
[324924383,1714422641050,-500.0,0.00041096,31]
[324924385,1714422641060,-500.0,0.00041096,31]
[324924387,1714422641069,-500.0,0.00041096,31]
[324924390,1714422641079,-500.0,0.00041096,31]
[324924391,1714422641089,-500.0,0.00041096,31]
[324924392,1714422641098,-500.0,0.00041096,31]
[324924393,1714422641108,-500.0,0.00041096,31]
[324924394,1714422641117,-500.0,0.00041096,31]
[324924395,1714422641126,-500.0,0.00041096,31]
[324924397,1714422641135,-289.31510534,0.00041207,30]
[324924399,1714422641145,-3139.531024,0.00041553,120]
[324924401,1714422641154,-1452.36690419,0.00041659,11]
[324924403,1714422641164,-1000.0,0.00041684,7]
[324924404,1714422641174,-588.0,0.000417,30]
[324924405,1714422641184,-289.31510534,0.00041713,30]
[324924406,1714422641194,-44444.0,0.00041768,5]
[324924407,1714422641203,-14034.89303902,0.000418,11]
[324924408,1714422641212,-289.31510562,0.00041811,30]
[324924409,1714422641222,-500.0,0.00041849,10]
[324924410,1714422641232,-271.09,0.00041867,7]
[324924411,1714422641241,-271.09,0.00041867,7]
[324924412,1714422641250,-271.09,0.00041867,7]
[324924413,1714422641260,-271.09,0.00041867,7]
[324924414,1714422641270,-271.09,0.00041867,7]
[324924415,1714422641279,-271.09,0.00041867,7]
[324924416,1714422641289,-271.09,0.00041867,7]
[324924417,1714422641299,-271.09,0.00041867,7]
[324924418,1714422641308,-271.09,0.00041867,7]
[324924419,1714422641317,-271.09,0.00041867,7]
[324924420,1714422641326,-14787.78197068,0.00041868,7]
[324924421,1714422641336,-899.98854569,0.00041868,90]
[324924423,1714422641620,-3413.93132159,0.00041868,90]
[324924424,1714422641632,-5770.9989328,0.00041868,90]
[324924425,1714422641644,-10926.39587251,0.00041868,90]
[324924472,1714422643395,-16109.74028377,0.00041868,90]
[324924475,1714422643410,-539.617068,0.00041868,90]
[324924481,1714422643547,-210531.79899508,0.00041868,90]
[324924581,1714423597138,-154.78330338,0.00018581,2]
[324924582,1714423597158,-63.5755378,0.000189,2]
[324924583,1714423652098,-160.10418126,0.00018581,2]
[324924584,1714423652118,-102.38977255,0.000189,2]
[324924585,1714423652137,-160.12482,0.00018909,2]
[324924586,1714423652156,-159.14208781,0.0001946,2]
[324924587,1714423652177,-204.23558872,0.00019559,2]
[324924588,1714423652196,-300.0,0.0001956,2]
[324924589,1714423652216,-300.0,0.0001956,2]
[324924590,1714423652236,-8531.79344873,0.00019561,2]
[324924644,1714423832535,-300.0,0.0001939,2]
[324924646,1714423832545,-300.0,0.0001939,2]
[324924648,1714423832554,-3943.42659555,0.00019391,2]
[324924650,1714423832565,-1518.48172937,0.00019391,2]
[324924741,1714423838512,-997.84593999,0.00019391,2]
[324924742,1714423838566,-938.25,0.00019391,2]
[324924743,1714423838577,-17501.99573509,0.00019391,2]
[324924744,1714423838586,-363.95014905,0.00019561,2]
[324924745,1714423838595,-160.292521,0.00019636,2]
[324924746,1714423838605,-241.68429594,0.0002,2]
[324924747,1714423838614,-1111.67355031,0.00020811,2]
[324924748,1714423838623,-154.81422293,0.0002091,2]
[324924749,1714423838633,-218.35771321,0.0002091,2]
[324924750,1714423838642,-154.92367269,0.0002091,2]
[324924751,1714423838651,-680.58511048,0.0002091,2]
[324924752,1714423838661,-157.76351589,0.0002091,2]
[324924753,1714423838670,-521.52942585,0.0002091,2]
[324924754,1714423838679,-193.60170872,0.0002091,2]
[324924755,1714423838690,-189.30063706,0.00020911,2]
[324924756,1714423838700,-2188.73430382,0.00020911,2]
[324924757,1714423838709,-2998.6752285,0.00020911,2]
[324924758,1714423838718,-500.0,0.00020911,2]
[324924759,1714423838860,-610.27897714,0.00020911,2]
[324924760,1714423838870,-500.0,0.00020911,2]
[324924761,1714423838880,-620.84236101,0.00020911,2]
[324924762,1714423838889,-568.88864584,0.00020911,2]
[324924763,1714423838898,-500.0,0.00020911,2]
[324924764,1714423838908,-500.0,0.00020911,2]
[324924765,1714423838917,-199.82991119,0.00020911,2]
[324924766,1714423838927,-533.76689088,0.00020911,2]
[324924767,1714423838937,-272.70165246,0.00020912,2]
[324924768,1714423838947,-49764.63342944,0.00020912,2]
[324924769,1714423838956,-603.57234398,0.00020912,2]
[324924770,1714423838965,-329.804469,0.00020912,2]
[324924771,1714423838974,-400.0,0.00020912,2]
[324924772,1714423838983,-257.29627275,0.00020913,2]
[324924773,1714423838993,-461.92467003,0.00020913,2]
[324924774,1714423839002,-4915.6041455,0.00020913,2]
[324924775,1714423839011,-154.84515175,0.00020913,2]
[324924776,1714423839020,-306.68470932,0.00020913,2]
[324924777,1714423839030,-420.0,0.00021329,2]
[324924778,1714423839038,-629.229653,0.00022466,2]
[324924779,1714423839048,-173.253505,0.00022466,2]
[324924780,1714423839057,-304.242988,0.00022466,2]
[324924781,1714423839067,-587.0,0.00023462,2]
[324924782,1714423839080,-693.03286136,0.00024,2]
[324924783,1714423839089,-248.43121626,0.00025003,2]
[324924784,1714423839098,-248.43121626,0.00025177,2]
[324924785,1714423839108,-153.93095889,0.00025485,2]
[324924786,1714423839119,-248.43121626,0.00025603,2]
[324924787,1714423839127,-156.46024239,0.00025682,2]
[324924788,1714423839136,-823.0,0.00025809,2]
[324924789,1714423839146,-156.46024239,0.00025938,2]
[324924790,1714423839155,-156.46024239,0.00026178,2]
[324924791,1714423839165,-1111.67355029,0.00026395,3]
[324924792,1714423839174,-156.18617837,0.00026425,2]
[324924793,1714423839183,-152.77728267,0.00026829,2]
[324924794,1714423839195,-248.43121626,0.00026974,2]
[324924795,1714423839204,-153.46035339,0.00027001,2]
[324924796,1714423839213,-153.46035339,0.00027072,2]
[324924797,1714423839222,-248.43121626,0.00027074,2]
[324924798,1714423839232,-153.93095889,0.00027277,2]
[324924799,1714423839242,-166.666666,0.00027397,2]
[324924800,1714423839252,-152.77728267,0.00027463,2]
[324924801,1714423839261,-153.46035339,0.00027612,2]
[324924802,1714423839271,-156.46024239,0.00027701,2]
[324924803,1714423839280,-248.43121626,0.00027711,2]
[324924804,1714423839289,-152.77728267,0.00027991,2]
[324924805,1714423839299,-424.03324128,0.00028,2]
[324924806,1714423839308,-166.666666,0.00028038,2]
[324924807,1714423839317,-248.43121626,0.00028058,2]
[324924808,1714423839327,-248.43121626,0.0002806,2]
[324924809,1714423839336,-153.46035339,0.0002815,2]
[324924810,1714423839345,-152.77728267,0.0002839,2]
[324924811,1714423839354,-156.46024239,0.00028457,2]
[324924812,1714423839364,-629.229653,0.00028493,2]
[324924813,1714423839373,-304.242988,0.00028493,2]
[324924814,1714423839384,-248.43121626,0.00028574,2]
[324924815,1714423839394,-166.666666,0.00028679,2]
[324924816,1714423839403,-152.77728267,0.00029168,2]
[324924817,1714423839413,-166.666666,0.00029321,2]
[324924818,1714423839422,-248.43121626,0.00029498,2]
[324924819,1714423839432,-248.43121626,0.00029765,2]
[324924820,1714423839445,-166.666666,0.00029962,2]
[324924821,1714423839455,-154.78330338,0.0003,4]
[324924822,1714423839465,-188.38304262,0.0003,4]
[324924823,1714423839474,-212.47717672,0.0003,4]
[324924824,1714423839484,-251.0,0.0003,2]
[324924825,1714423839493,-153.93095889,0.00030031,7]
[324924826,1714423839502,-1000.0,0.000301,7]
[324924827,1714423839511,-153.46035339,0.00030138,7]
[324924828,1714423839521,-156.46024239,0.00030194,7]
[324924829,1714423839531,-248.43121626,0.00030308,7]
[324924830,1714423839539,-152.77728267,0.00030587,7]
[324924831,1714423839548,-1000.0,0.000306,7]
[324924832,1714423839558,-166.666666,0.00030603,2]
[324924833,1714423839567,-153.46035339,0.00030765,7]
[324924834,1714423839576,-248.43121626,0.00030802,7]
[324924835,1714423839585,-248.43121626,0.00030932,7]
[324924836,1714423839595,-156.18617837,0.00031085,7]
[324924837,1714423839604,-1000.0,0.000311,7]
[324924838,1714423839614,-153.46035339,0.00031493,7]
[324924839,1714423839623,-153.46035339,0.00031495,7]
[324924840,1714423839632,-1000.0,0.000316,7]
[324924841,1714423839642,-221.9,0.00031651,120]
[324924842,1714423839651,-153.34957969,0.00031651,2]
[324924843,1714423839660,-153.34957969,0.00031651,2]
[324924844,1714423839669,-153.34957969,0.00031651,2]
[324924845,1714423839678,-153.34957969,0.00031651,2]
[324924846,1714423839689,-977.55062889,0.00031651,2]
[324924847,1714423839698,-1111.67355029,0.00031979,5]
[324924848,1714423839708,-766.51798716,0.00032,4]
[324924849,1714423839716,-156.18617837,0.00032209,7]
[324924850,1714423839725,-248.43121626,0.00032285,7]
[324924851,1714423839734,-248.43121626,0.00032537,7]
[324924852,1714423839742,-248.43121626,0.00032542,7]
[324924853,1714423839751,-5000.0,0.00033,5]
[324924854,1714423839760,-251.0,0.00033,2]
[324924855,1714423839770,-156.46024239,0.0003327,7]